bitfinex-derivatives/quotes_BNBF0:USTF0_20250511
["timestamp","ask_amount","ask_price","bid_price","bid_amount"]
[1746968452884,0.30428895,657.27,656.7,1.17726658]
[1746968453183,0.30428895,657.27,656.71,0.27942285]
[1746968453683,0.30428895,657.27,656.72,1.17726658]
[1746968453884,0.30428895,657.27,656.73,0.27942285]
[1746968454084,0.30428895,657.27,656.74,0.30411549]
[1746968454284,0.30428895,657.27,656.75,1.48138207]
[1746968454481,0.30428895,657.27,656.76,0.30411549]
[1746968454786,0.30428895,657.27,656.77,1.48138207]
[1746968454984,0.30428895,657.27,656.78,0.30411549]
[1746968455181,0.30428895,657.27,656.79,1.48138207]
[1746968455485,0.30428895,657.27,656.8,0.27942285]
[1746968455885,0.30428895,657.27,656.81,1.17726658]
[1746968456486,0.30428895,657.27,656.82,0.27942285]
[1746968457085,0.30428895,657.27,656.83,1.17726658]
[1746968457785,0.30428895,657.27,656.84,0.27942285]
[1746968457979,0.30428895,657.27,656.85,1.17726658]
[1746968458286,0.30428895,657.27,656.86,0.27942285]
[1746968458785,0.30428895,657.27,656.87,1.17726658]
[1746968459187,0.30428895,657.27,656.88,0.27942285]
[1746968459684,0.30428895,657.27,656.89,1.17726658]
[1746968460085,0.30428895,657.27,656.9,0.27942285]
[1746968461085,0.30428895,657.27,656.36,0.27942285]
[1746968461385,0.30428895,657.27,656.37,1.76164109]
[1746968461581,0.30428895,657.27,656.38,0.304112]
[1746968461781,0.30428895,657.27,656.39,1.48221824]
[1746968461983,0.30428895,657.27,656.4,0.304112]
[1746968462185,0.30428895,657.27,656.4,0.58353485]
[1746968462485,0.30428895,657.27,656.41,1.76164109]
[1746968462686,0.30428895,657.27,656.42,1.48221824]
[1746968462886,0.30428895,657.27,656.43,1.48221824]
[1746968463185,0.30428895,657.27,656.44,0.304112]
[1746968463387,0.30428895,657.27,656.44,0.58353485]
[1746968463588,0.30428895,657.27,656.45,1.76164109]
[1746968463785,0.30428895,657.27,656.46,0.304112]
[1746968463985,0.30428895,657.27,656.46,1.76164109]
[1746968464291,0.30428895,657.27,656.47,1.76164109]
[1746968464591,0.30428895,657.27,656.48,0.58353485]
[1746968464784,0.30428895,657.27,656.49,0.58353485]
[1746968464983,0.30428895,657.27,656.5,0.304112]
[1746968465185,0.30428895,657.27,656.51,0.304112]
[1746968465484,0.30428895,657.27,656.52,1.48221824]
[1746968465687,0.30428895,657.27,656.53,0.304112]
[1746968465989,0.30428895,657.27,656.54,1.76164109]
[1746968466189,0.30428895,657.27,656.55,0.304112]
[1746968466385,0.30428895,657.27,656.56,1.48221824]
[1746968466589,0.30428895,657.27,656.57,0.304112]
[1746968466791,0.30428895,657.27,656.58,0.30411016]
[1746968466993,0.30428895,657.27,656.59,0.30411016]
[1746968467192,0.30428895,657.27,656.6,1.76163925]
[1746968467388,0.30428895,657.27,656.61,0.30411016]
[1746968467589,0.30428895,657.27,656.62,1.4822164]
[1746968467793,0.30428895,657.27,656.63,1.4822164]
[1746968467988,0.30428895,657.27,656.64,1.4822164]
[1746968468192,0.30428895,657.27,656.65,0.30411016]
[1746968468389,0.30428895,657.27,656.66,0.30411016]
[1746968468593,0.30428895,657.27,656.67,0.30411016]
[1746968468794,0.30428895,657.27,656.68,1.7616176]
[1746968468994,0.30428895,657.27,656.69,0.30411016]
[1746968469193,0.30428895,657.27,656.7,1.4822164]
[1746968469396,0.30428895,657.27,656.71,0.30411016]
[1746968469596,0.30428895,657.27,656.72,0.30411016]
[1746968469796,0.30428895,657.27,656.73,0.30411016]
[1746968470095,0.30428895,657.27,656.74,0.30411016]
[1746968470397,0.30428895,657.27,656.75,1.76144305]
[1746968470595,0.30428895,657.27,656.76,1.76144305]
[1746968470890,0.30428895,657.27,656.77,1.76144305]
[1746968471195,0.30428895,657.27,656.78,0.58351136]
[1746968471395,0.30428895,657.27,656.79,0.30411016]
[1746968471596,0.30428895,657.27,656.8,0.30411016]
[1746968471791,0.30428895,657.27,656.81,1.76144305]
[1746968471996,0.30428895,657.27,656.82,0.58351136]
[1746968472196,0.30428895,657.27,656.83,0.583503]
[1746968472398,0.30428895,657.27,656.84,1.76143469]
[1746968472596,0.30428895,657.27,656.85,0.583503]
[1746968472791,0.30428895,657.27,656.86,1.45733289]
[1746968472991,0.30428895,657.27,656.87,0.58348943]
[1746968473297,0.30428895,657.27,656.88,0.58348943]
[1746968473498,0.30428895,657.27,656.89,1.45733289]
[1746968473698,0.30428895,657.27,656.89,1.17793169]
[1746968474000,0.30428895,657.27,656.9,0.27939562]
[1746968474500,0.30428895,657.27,656.37,0.27939562]
[1746968474694,0.30428895,657.27,656.38,0.58349928]
[1746968474893,0.30428895,657.27,656.39,1.76143097]
[1746968475093,0.30428895,657.27,656.4,0.30410366]
[1746968475292,0.30428895,657.27,656.4,0.58349928]
[1746968475497,0.30428895,657.27,656.41,2.02603152]
[1746968475799,0.30428895,657.27,656.42,0.58349452]
[1746968475993,0.30428895,657.27,656.43,1.76142621]
[1746968476198,0.30428895,657.27,656.44,0.58349452]
[1746968476392,0.30428895,657.27,656.45,0.58349452]
[1746968476596,0.30428895,657.27,656.46,1.76142621]
[1746968476797,0.30428895,657.27,656.47,0.58349452]
[1746968476997,0.30428895,657.27,656.48,0.58349452]
[1746968477192,0.30428895,657.27,656.49,1.48203059]
[1746968477397,0.30428895,657.27,656.5,0.3040989]
[1746968477592,0.30428895,657.27,656.51,0.3040989]
[1746968477792,0.30428895,657.27,656.52,1.48203059]
[1746968477997,0.30428895,657.27,656.53,0.3040989]
[1746968478297,0.30428895,657.27,656.54,0.583467]
[1746968478497,0.30428895,657.27,656.55,1.76139869]
[1746968478696,0.30428895,657.27,656.56,1.76139869]
[1746968478897,0.30428895,657.27,656.57,1.76139869]
[1746968479102,0.30428895,657.27,656.58,0.3040989]
[1746968479294,0.30428895,657.27,656.59,0.3040989]
[1746968479498,0.30428895,657.27,656.6,0.3040989]
[1746968479699,0.30428895,657.27,656.61,0.3040989]
[1746968479900,0.30428895,657.27,656.62,0.3040989]
[1746968480099,0.30428895,657.27,656.63,0.3040989]
[1746968480300,0.30428895,657.27,656.64,0.3040989]
[1746968480497,0.30428895,657.27,656.65,0.58346708]
[1746968480696,0.30428895,657.27,656.66,1.48203059]
[1746968480896,0.30428895,657.27,656.67,0.3040989]
[1746968481201,0.30428895,657.27,656.68,1.48200607]
[1746968481397,0.30428895,657.27,656.69,0.30407438]
[1746968481602,0.30428895,657.27,656.7,1.48200607]
[1746968481904,0.30428895,657.27,656.71,1.76137425]
[1746968482099,0.30428895,657.27,656.72,0.30407438]
[1746968482305,0.30428895,657.27,656.72,0.58344256]
[1746968482501,0.30428895,657.27,656.73,0.30407438]
[1746968482701,0.30428895,657.27,656.74,1.17793169]
[1746968482901,0.30428895,657.27,656.75,0.30407438]
[1746968483105,0.30428895,657.27,656.76,0.30410004]
[1746968483402,0.30428895,657.27,656.77,1.76139991]
[1746968483601,0.30428895,657.27,656.78,0.30410004]
[1746968483799,0.30428895,657.27,656.79,0.30410004]
[1746968483997,0.30428895,657.27,656.8,1.48203173]
[1746968484202,0.30428895,657.27,656.81,0.30410004]
[1746968484400,0.30428895,657.27,656.82,0.58346476]
[1746968484599,0.30428895,657.27,656.82,0.27936818]
[1746968484802,0.30428895,657.27,656.83,0.58345418]
[1746968484999,0.30428895,657.27,656.84,1.45729987]
[1746968485197,0.30428895,657.27,656.85,0.27936818]
[1746968485402,0.30428895,657.27,656.86,1.17793169]
[1746968485804,0.30428895,657.27,656.87,0.27936818]
[1746968486107,0.30428895,657.27,656.88,1.17793169]
[1746968486404,0.30428895,657.27,656.89,0.27936818]
[1746968487006,0.30428895,657.27,656.9,1.17793169]
[1746968487506,0.30428895,657.27,656.91,0.27936818]
[1746968488100,0.30428895,657.27,656.92,1.17793169]
[1746968488601,0.30428895,657.27,656.93,0.27936818]
[1746968489605,0.30428895,657.27,656.94,1.17793169]
[1746968490106,0.30428895,657.27,656.95,0.27936818]
[1746968490906,0.30428895,657.27,656.35,0.30471547]
[1746968490907,0.30428895,657.27,656.36,0.27936818]
[1746968491108,0.30428895,657.27,656.96,0.27936818]
[1746968491308,0.30428895,657.27,656.38,0.27936818]
[1746968491509,0.30428895,657.27,656.39,1.45853536]
[1746968491708,0.30428895,657.27,656.4,0.27936818]
[1746968492008,0.30428895,657.27,656.41,1.45853536]
[1746968492309,0.30428895,657.27,656.42,0.27936818]
[1746968492507,0.30428895,657.27,656.43,1.45853536]
[1746968492808,0.30428895,657.27,656.44,1.45853536]
[1746968493005,0.30428895,657.27,656.45,1.45853536]
[1746968493210,0.30428895,657.27,656.46,0.27936818]
[1746968493410,0.30428895,657.27,656.47,0.27936818]
[1746968493710,0.30428895,657.27,656.48,0.27936818]
[1746968494107,0.30428895,657.27,656.49,1.45853536]
[1746968494410,0.30428895,657.27,656.5,0.27936818]
[1746968494611,0.30428895,657.27,656.51,1.45853536]
[1746968494811,0.30428895,657.27,656.52,0.27936818]
[1746968495011,0.30428895,657.27,656.53,0.27936818]
[1746968495211,0.30428895,657.27,656.54,1.45853536]
[1746968495413,0.30428895,657.27,656.55,0.27936818]
[1746968495612,0.30428895,657.27,656.56,0.27936818]
[1746968495814,0.30428895,657.27,656.57,0.27936818]
[1746968496008,0.30428895,657.27,656.58,0.27936818]
[1746968496414,0.30428895,657.27,656.59,0.27936818]
[1746968496607,0.30428895,657.27,656.6,1.17916718]
[1746968496810,0.30428895,657.27,656.6,1.45853536]
[1746968497113,0.30428895,657.27,656.61,0.27936818]
[1746968497412,0.30428895,657.27,656.62,1.17916718]
[1746968497613,0.30428895,657.27,656.62,1.45853536]
[1746968497808,0.30428895,657.27,656.63,0.27936818]
[1746968498113,0.30428895,657.27,656.63,1.45853536]
[1746968498314,0.30428895,657.27,656.64,0.27936818]
[1746968498508,0.30428895,657.27,656.65,1.17916718]
[1746968498813,0.30428895,657.27,656.66,0.27936818]
[1746968499314,0.30428895,657.27,656.67,1.45853536]
[1746968499715,0.30428895,657.27,656.68,0.27936818]
[1746968499920,0.30428895,657.27,656.69,1.17916718]
[1746968500215,0.30428895,657.27,656.7,0.27936818]
[1746968500616,0.30428895,657.27,656.71,1.17916718]
[1746968500816,0.30428895,657.27,656.72,0.27936818]
[1746968501316,0.30428895,657.27,656.73,1.17916718]
[1746968501718,0.30428895,657.27,656.74,0.27936818]
[1746968502419,0.30428895,657.27,656.75,1.17916718]
[1746968502718,0.30428895,657.27,656.76,0.27936818]
[1746968503114,0.30428895,657.27,656.77,1.17916718]
[1746968503419,0.30428895,657.27,656.78,0.27936818]
[1746968503918,0.30428895,657.27,656.79,1.17916718]
[1746968504118,0.30428895,657.27,656.8,0.27936818]
[1746968504719,0.30428895,657.27,656.81,1.17916718]
[1746968505019,0.30428895,657.27,656.82,0.27936818]
[1746968505319,0.30428895,657.27,656.83,1.17916718]
[1746968505722,0.30428895,657.27,656.84,0.27936648]
[1746968506116,0.30428895,657.27,656.85,1.17916718]
[1746968506521,0.30428895,657.27,656.86,0.27936648]
[1746968506922,0.30428895,657.27,656.87,1.17916718]
[1746968507221,0.30428895,657.27,656.88,0.27936648]
[1746968507622,0.30428895,657.27,656.89,1.17916718]
[1746968508121,0.30428895,657.27,656.9,0.27936648]
[1746968508421,0.30428895,657.27,656.91,1.17916718]
[1746968508722,0.30428895,657.27,656.92,0.27936648]
[1746968509223,0.30428895,657.27,656.93,1.17916718]
[1746968509624,0.30428895,657.27,656.94,0.27936648]
[1746968509825,0.30428895,657.27,656.95,1.17916718]
[1746968510226,0.30428895,657.27,656.96,1.17916718]
[1746968510420,0.30428895,657.27,656.96,1.45853366]
[1746968510725,0.30428895,657.27,656.97,1.17916718]
[1746968510920,0.30428895,657.27,656.97,1.45853366]
[1746968511124,0.30428895,657.27,656.98,0.27936648]
[1746968511324,0.30428895,657.27,656.99,1.17916718]
[1746968511528,0.30428895,657.27,657.0,1.17916718]
[1746968511826,0.30428895,657.27,657.01,1.45853366]
[1746968512227,0.30428895,657.27,657.02,0.27936648]
[1746968512428,0.30428895,657.27,657.02,1.45853366]
[1746968512722,0.30428895,657.27,657.03,0.27936648]
[1746968513028,0.30428895,657.27,657.04,1.17916718]
[1746968513228,0.30428895,657.27,657.05,0.27936648]
[1746968513528,0.30428895,657.27,657.06,1.17916718]
[1746968513827,0.30428895,657.27,657.07,1.17916718]
[1746968514027,0.30428895,657.27,657.07,1.45853366]
[1746968514225,0.30428895,657.27,657.08,1.17916718]
[1746968514422,0.30428895,657.27,657.08,1.45853366]
[1746968514624,0.30428895,657.27,657.09,0.27936648]
[1746968515229,0.30428895,657.27,656.35,0.30471547]
[1746968515530,0.30428895,657.27,656.36,0.27930813]
[1746968515723,0.30428895,657.27,656.37,1.17822576]
[1746968515924,0.30428895,657.27,656.37,1.72204394]
[1746968516125,0.30428895,657.27,656.38,1.45753389]
[1746968516529,0.30428895,657.27,656.39,1.45753389]
[1746968516730,0.30428895,657.27,656.4,0.27930813]
[1746968517032,0.30428895,657.27,656.41,0.27930813]
[1746968517232,0.30428895,657.27,656.42,0.27930813]
[1746968517631,0.30428895,657.27,656.43,0.27930813]
[1746968517831,0.30428895,657.27,656.43,1.45753389]
[1746968518132,0.30428895,657.27,656.44,0.27930813]
[1746968518332,0.30428895,657.27,656.45,1.17822576]
[1746968518633,0.30428895,657.27,656.46,1.17822576]
[1746968518933,0.30428895,657.27,656.46,1.45753389]
[1746968519133,0.30428895,657.27,656.47,1.17822576]
[1746968519333,0.30428895,657.27,656.47,1.45753389]
[1746968519526,0.30428895,657.27,656.48,1.45753389]
[1746968519731,0.30428895,657.27,656.49,1.17822576]
[1746968519934,0.30428895,657.27,656.49,1.45753389]
[1746968520133,0.30428895,657.27,656.5,0.27930813]
[1746968520434,0.30428895,657.27,656.51,0.27930813]
[1746968520634,0.30428895,657.27,656.52,1.45753389]
[1746968521028,0.30428895,657.27,656.53,0.27930813]
[1746968521233,0.30428895,657.27,656.54,0.27930813]
[1746968521534,0.30428895,657.27,656.55,1.45753389]
[1746968521834,0.30428895,657.27,656.56,0.27930813]
[1746968522232,0.30428895,657.27,656.57,1.45753389]
[1746968522933,0.30428895,657.27,656.58,1.45753389]
[1746968523334,0.30428895,657.27,656.59,1.45753389]
[1746968523735,0.30428895,657.27,656.6,1.45753389]
[1746968524136,0.30428895,657.27,656.61,0.27930813]
[1746968524436,0.30428895,657.27,656.62,1.45753389]
[1746968524736,0.30428895,657.27,656.63,0.27930813]
[1746968525130,0.30428895,657.27,656.62,1.17822576]
[1746968525131,0.30428895,657.27,656.64,1.45753389]
[1746968525336,0.30428895,657.27,656.65,1.45753389]
[1746968525736,0.30428895,657.27,656.66,0.27930813]
[1746968526037,0.30428895,657.27,656.67,1.45753389]
[1746968526337,0.30428895,657.27,656.68,1.17822576]
[1746968526830,0.30428895,657.27,656.69,1.17822576]
[1746968527338,0.30428895,657.27,656.7,1.17822576]
[1746968527632,0.30428895,657.27,656.71,0.27931369]
[1746968528032,0.30428895,657.27,656.72,1.45753945]
[1746968528237,0.30428895,657.27,656.73,0.27931369]
[1746968528537,0.30428895,657.27,656.74,1.45753945]
[1746968528737,0.30428895,657.27,656.75,1.17822576]
[1746968528938,0.30428895,657.27,656.75,1.45753945]
[1746968529136,0.30428895,657.27,656.76,0.27931369]
[1746968529637,0.30428895,657.27,656.77,1.45753945]
[1746968529838,0.30428895,657.27,656.78,0.27931369]
[1746968530140,0.30428895,657.27,656.79,1.45753945]
[1746968530540,0.30428895,657.27,656.8,1.17822576]
[1746968530740,0.30428895,657.27,656.8,1.45753945]
[1746968530934,0.30428895,657.27,656.81,1.45753945]
[1746968531239,0.30428895,657.27,656.82,0.27931369]
[1746968531640,0.30428895,657.27,656.83,0.27931369]
[1746968531840,0.30428895,657.27,656.84,1.17822576]
[1746968532036,0.30428895,657.27,656.84,1.45753945]
[1746968532340,0.30428895,657.27,656.85,1.17822576]
[1746968532540,0.30428895,657.27,656.85,1.45753945]
[1746968532738,0.30428895,657.27,656.86,1.17822576]
[1746968532933,0.30428895,657.27,656.87,1.17822576]
[1746968533341,0.30428895,657.27,656.88,0.27931369]
[1746968533638,0.30428895,657.27,656.89,1.17822576]
[1746968533943,0.30428895,657.27,656.9,0.27931369]
[1746968534139,0.30428895,657.27,656.91,1.17822576]
[1746968534644,0.30428895,657.27,656.92,0.27931369]
[1746968534945,0.30428895,657.27,656.93,1.17822576]
[1746968535445,0.30428895,657.27,656.94,1.17822576]
[1746968535642,0.30428895,657.27,656.94,1.45753945]
[1746968535840,0.30428895,657.27,656.95,0.27931369]
[1746968536044,0.30428895,657.27,656.96,1.17822576]
[1746968536345,0.30428895,657.27,656.97,1.17822576]
[1746968536544,0.30428895,657.27,656.97,1.45753945]
[1746968536748,0.30428895,657.27,656.98,0.27931369]
[1746968536948,0.30428895,657.27,656.99,1.17822576]
[1746968537449,0.30428895,657.27,657.0,1.45753945]
[1746968537850,0.30428895,657.27,657.01,1.45753945]
[1746968538150,0.30428895,657.27,657.02,0.27931369]
[1746968538550,0.30428895,657.27,657.03,1.17822576]
[1746968538849,0.30428895,657.27,657.04,0.27931369]
[1746968539051,0.30428895,657.27,657.05,1.17822576]
[1746968539444,0.30428895,657.27,657.06,0.27931369]
[1746968539644,0.30428895,657.27,657.06,1.45753945]
[1746968539950,0.30428895,657.27,657.07,1.45753945]
[1746968540350,0.30428895,657.27,657.08,0.27931369]
[1746968540746,0.30428895,657.27,657.09,1.17822576]
[1746968541150,0.30428895,657.27,657.1,0.27931369]
[1746968541352,0.30428895,657.27,657.11,1.17822576]
[1746968541755,0.30428895,657.27,657.12,0.27931369]
[1746968542350,0.30428895,657.27,656.75,0.27931369]
[1746968542653,0.30428895,657.27,656.76,0.27931369]
[1746968542850,0.30428895,657.27,656.77,1.1751712]
[1746968543048,0.30428895,657.27,656.77,1.45448489]
[1746968543247,0.30428895,657.27,656.78,1.45448489]
[1746968543753,0.30428895,657.27,656.79,0.27931369]
[1746968544149,0.30428895,657.27,656.8,0.27931369]
[1746968544456,0.30428895,657.27,656.81,0.27931369]
[1746968544653,0.30428895,657.27,656.81,1.45448489]
[1746968544949,0.30428895,657.27,656.82,0.27931369]
[1746968545154,0.30428895,657.27,656.83,0.27931369]
[1746968545355,0.30428895,657.27,656.84,0.27931369]
[1746968545556,0.30428895,657.27,656.84,1.45447889]
[1746968545757,0.30428895,657.27,656.85,0.27931369]
[1746968545958,0.30428895,657.27,656.86,1.1751652]
[1746968546157,0.30428895,657.27,656.86,1.45447889]
[1746968546352,0.30428895,657.27,656.86,1.1751652]
[1746968546555,0.30428895,657.27,656.87,1.1751652]
[1746968546857,0.30428895,657.27,656.88,1.1751652]
[1746968547058,0.30428895,657.27,656.88,1.45443115]
[1746968547357,0.30428895,657.27,656.89,0.27926595]
[1746968547558,0.30428895,657.27,656.9,1.1751652]
[1746968547758,0.30428895,657.27,656.9,1.45443115]
[1746968547958,0.30428895,657.27,656.91,1.45443115]
[1746968548359,0.30428895,657.27,656.92,0.27926595]
[1746968548559,0.30428895,657.27,656.92,1.45443115]
[1746968548754,0.30428895,657.27,656.93,0.27926595]
[1746968549158,0.30428895,657.27,656.94,1.1751652]
[1746968549357,0.30428895,657.27,656.95,1.1751652]
[1746968549559,0.30428895,657.27,656.96,0.27926595]
[1746968550260,0.30428895,657.27,656.97,1.1751652]
[1746968550861,0.30428895,657.27,656.98,0.27926595]
[1746968551261,0.30428895,657.27,656.99,1.1751652]
[1746968551762,0.30428895,657.27,657.0,0.27926595]
[1746968552164,0.30428895,657.27,657.01,1.1751652]
[1746968552864,0.30428895,657.27,657.02,0.27926595]
[1746968553265,0.30428895,657.27,657.03,1.1751652]
[1746968553561,0.30428895,657.27,657.04,1.45443115]
[1746968553868,0.30428895,657.27,657.05,1.1751652]
[1746968554065,0.30428895,657.27,657.05,1.45443115]
[1746968554766,0.30428895,657.27,657.06,1.45443115]
[1746968555367,0.30428895,657.27,657.07,1.45443115]
[1746968555768,0.30428895,657.27,657.08,1.1751652]
[1746968556069,0.30428895,657.27,657.09,0.27926595]
[1746968556269,0.30428895,657.27,657.1,1.1751652]
[1746968556771,0.30428895,657.27,657.11,0.27926595]
[1746968557171,0.30428895,657.27,657.12,1.1751652]
[1746968557371,0.30428895,657.27,657.13,0.27926595]
[1746968557870,0.30428895,657.27,657.14,1.1751652]
[1746968558269,0.30428895,657.27,657.15,1.45443115]
[1746968558571,0.30428895,657.27,657.16,0.27926595]
[1746968558769,0.30428895,657.27,657.16,1.45443115]
[1746968559272,0.30428895,657.27,657.17,1.45443115]
[1746968559571,0.30428895,657.27,657.18,0.27926595]
[1746968559770,0.30428895,657.27,657.18,1.45443115]
[1746968559973,0.30428895,657.27,657.19,0.27926595]
[1746968560872,0.30428895,657.27,657.2,1.1751652]
[1746968561371,0.30428895,657.27,657.21,0.27926595]
[1746968561574,0.30428895,657.27,657.21,1.45443115]
[1746968562074,0.30428895,657.27,657.22,1.45443115]
[1746968562274,0.30428895,657.27,657.23,0.27926595]
[1746968562874,0.30428895,657.27,657.24,1.1751652]
[1746968563175,0.30428895,657.27,657.25,0.27926595]
[1746968563674,0.30428895,657.27,657.26,1.1751652]
[1746968564176,0.30428895,657.27,657.26,1.45443115]
[1746968570181,0.2910728,657.27,657.26,1.45443115]
[1746968570682,0.2910728,657.27,657.26,1.1751652]
[1746968571282,0.2910728,657.27,657.26,1.45430963]
[1746968572183,0.2910728,657.27,657.26,1.1751652]
[1746968572482,0.2910728,657.27,657.26,1.45430658]
[1746968573278,0.2910728,657.27,657.26,1.1751652]
[1746968573683,0.2910728,657.27,657.26,1.45430885]
[1746968575186,0.2910728,657.27,657.26,0.27914365]
[1746968575387,0.2910728,657.27,657.26,1.45064114]
[1746968580787,0.2910728,657.27,657.26,1.17149749]
[1746968581187,0.2910728,657.27,657.26,1.45063644]
[1746968582986,0.2910728,657.27,657.26,1.17149749]
[1746968583188,0.2910728,657.27,657.26,1.45063568]
[1746968586384,0.2910728,657.27,657.26,1.17149749]
[1746968586786,0.2910728,657.27,657.26,1.45063568]
[1746968598298,0.2910728,657.27,657.26,1.17149749]
[1746968598697,0.2910728,657.27,657.26,1.45063205]
[1746968599095,0.2910728,657.27,657.26,1.17149749]
[1746968599399,0.2910728,657.27,657.26,1.45062928]
[1746968601199,0.2910728,657.27,657.26,1.17149749]
[1746968602001,0.2910728,657.27,657.26,1.45063244]
[1746968604695,0.2910728,657.27,657.26,1.17149749]
[1746968608303,0.2910728,657.27,657.26,1.45062144]
[1746968615210,0.2910728,657.27,657.26,1.443252]
[1746968615612,0.2910728,657.27,657.26,0.27912395]
[1746968615911,0.2910728,657.27,656.36,0.27912395]
[1746968616912,0.2910728,657.27,656.37,0.54344013]
[1746968617213,0.2910728,657.27,656.38,0.27912395]
[1746968617512,0.2910728,657.27,656.39,0.27912395]
[1746968617812,0.2910728,657.27,656.4,0.27912395]
[1746968618112,0.2910728,657.27,656.41,0.27912395]
[1746968618413,0.2910728,657.27,656.42,0.27912395]
[1746968618712,0.2910728,657.27,656.43,0.27912395]
[1746968619111,0.2910728,657.27,656.44,0.27912395]
[1746968619412,0.2910728,657.27,656.45,0.27912395]
[1746968619709,0.2910728,657.27,656.46,0.27912395]
[1746968620112,0.2910728,657.27,656.47,0.27912395]
[1746968620613,0.2910728,657.27,656.48,0.27912395]
[1746968620811,0.2910728,657.27,656.49,0.27912395]
[1746968621212,0.2910728,657.27,656.5,0.27912395]
[1746968621514,0.2910728,657.27,656.51,0.27912395]
[1746968621816,0.2910728,657.27,656.52,0.27912395]
[1746968622116,0.2910728,657.27,656.53,0.27912395]
[1746968622414,0.2910728,657.27,656.42,0.26430212]
[1746968622415,0.2910728,657.27,656.54,0.27912395]
[1746968622814,0.2910728,657.27,656.55,0.27912395]
[1746968623515,0.2910728,657.27,656.56,0.27912395]
[1746968624015,0.2910728,657.27,656.57,0.27912395]
[1746968624508,0.2910728,657.27,656.58,0.27912395]
[1746968624910,0.2910728,657.27,656.59,0.27912395]
[1746968625216,0.2910728,657.27,656.6,0.27912395]
[1746968625515,0.2910728,657.27,656.61,0.27912395]
[1746968625911,0.2910728,657.27,656.62,0.27912395]
[1746968626216,0.2910728,657.27,656.63,0.27912395]
[1746968626616,0.2910728,657.27,656.64,0.27912395]
[1746968627018,0.2910728,657.27,656.65,0.27912395]
[1746968627417,0.2910728,657.27,656.66,1.45251859]
[1746968627816,0.2910728,657.27,656.67,1.45251859]
[1746968628112,0.2910728,657.27,656.67,1.17339464]
[1746968628315,0.2910728,657.27,656.68,1.17339464]
[1746968628618,0.2910728,657.27,656.69,1.17339464]
[1746968628816,0.2910728,657.27,656.69,1.45249595]
[1746968629019,0.2910728,657.27,656.7,1.17339464]
[1746968629318,0.2910728,657.27,656.71,1.45249595]
[1746968629720,0.2910728,657.27,656.71,1.17339464]
[1746968629921,0.2910728,657.27,656.72,1.45249885]
[1746968630118,0.2910728,657.27,656.73,1.45249885]
[1746968630420,0.2910728,657.27,656.74,1.45249885]
[1746968630719,0.2910728,657.27,656.75,1.45249885]
[1746968630920,0.2910728,657.27,656.76,1.17339464]
[1746968631120,0.2910728,657.27,656.76,1.45249885]
[1746968631322,0.2910728,657.27,656.77,0.27910421]
[1746968631623,0.2910728,657.27,656.78,1.45249885]
[1746968631925,0.2910728,657.27,656.79,0.27910421]
[1746968632223,0.2910728,657.27,656.8,0.27910421]
[1746968632425,0.2910728,657.27,656.8,1.45249885]
[1746968632618,0.2910728,657.27,656.81,0.27910421]
[1746968632820,0.2910728,657.27,656.81,1.45249885]
[1746968633022,0.2910728,657.27,656.81,1.17339464]
[1746968633224,0.2910728,657.27,656.82,0.27910329]
[1746968633525,0.2910728,657.27,656.83,1.45249793]
[1746968633826,0.2910728,657.27,656.84,0.27910329]
[1746968634022,0.2910728,657.27,656.85,1.17339464]
[1746968634220,0.2910728,657.27,656.85,1.45249793]
[1746968634420,1.9775294,659.09,656.86,1.17339464]
[1746968634620,1.9775294,659.09,656.87,1.17339464]
[1746968634927,1.9775294,659.09,656.88,0.27910329]
[1746968634928,0.50992757,659.08,656.88,0.27910329]
[1746968635227,0.50992757,659.08,656.89,1.17339464]
[1746968635428,1.9775294,659.01,656.89,1.45249793]
[1746968635627,1.9775294,659.01,656.9,1.17339464]
[1746968635828,0.2456124,659.0,656.9,1.45249793]
[1746968636126,0.50993159,659.0,656.91,1.75628468]
[1746968636327,0.30353619,658.9,656.92,0.30378675]
[1746968636527,0.30353619,658.9,656.93,0.30378675]
[1746968636727,0.30353619,658.9,656.94,0.58288715]
[1746968636928,0.30353619,658.9,656.95,0.30378386]
[1746968637227,0.30353619,658.9,656.96,1.4771785]
[1746968637428,0.30353619,658.9,656.97,0.58288715]
[1746968637629,0.30353619,658.9,656.98,0.30378386]
[1746968637927,0.30353619,658.9,656.99,0.30378386]
[1746968638129,0.30353619,658.9,657.0,0.30378386]
[1746968638422,0.30353619,658.9,657.01,1.4771785]
[1746968638627,0.30353619,658.9,657.02,0.30377687]
[1746968638829,0.30353619,658.9,657.03,0.30377687]
[1746968639129,0.26430714,658.89,657.04,0.58288016]
[1746968639330,0.26430714,658.89,657.05,1.7562748]
[1746968639531,0.26430714,658.89,657.06,0.30377687]
[1746968639731,0.26430714,658.89,657.07,1.17339464]
[1746968639931,0.26430714,658.89,657.08,0.58288016]
[1746968640132,0.26430714,658.89,657.09,1.47717151]
[1746968640332,0.26430714,658.89,657.1,0.30377768]
[1746968640533,0.26430714,658.89,657.11,0.30377768]
[1746968640732,0.26430714,658.89,657.12,0.30377768]
[1746968641032,0.26430714,658.89,657.13,0.58288097]
[1746968641231,0.26430714,658.89,657.14,0.58288097]
[1746968641430,0.26430714,658.89,657.15,0.30377768]
[1746968641629,0.26430714,658.89,657.16,0.30377768]
[1746968641831,0.30353619,658.9,657.17,0.30377768]